{"text_format":"1","workbook":"xlsx","n_sheets":1,"sheets":["ЖЭС-2"],"not_rendered":{"charts":0,"images":0,"macros":1,"external_links":0,"defined_names":6,"comments":0,"pivot_tables":0},"unopened":[],"bounds":{"document_bytes":16777216,"sheet_cells":100000,"rows_first":2000,"rows_last":500,"rows_between":2000,"halvings":0,"cell_chars":16384,"cell_head_chars":4096},"cells_cut":0,"cells_raw":0,"read":"whole","date_system":"1900"}

{"sheet":"ЖЭС-2","index":0,"n_rows":36,"n_cols":46,"rows_kept":36,"cut":false,"hidden":false,"merged":[[7,7,7,8],[7,10,7,11],[7,14,7,20],[7,21,7,23],[7,24,7,25]]}
[null,null,null,null,null,null,null,null,null,null,null,null,null,null,null,null,null,null,null,null,null,null,null,null,null,null,null,null,null,null,null,null,null,null,null,null,null,null,null,null,"УТВЕРЖДАЮ"]
[null,null,null,null,null,null,null,null,null,null,null,null,null,null,null,null,null,null,null,null,null,null,null,null,null,null,null,null,null,null,null,null,null,null,null,null,null,null,null,"Главный энергетик Лидского ГУП ЖКХ"]
[null,null,null,null,null,null,null,null,null,null,null,null,null,null,null,null,null,null,null,null,null,null,null,null,null,null,null,null,null,null,null,null,null,null,null,null,null,null,null,"____________ М.П. Клышейко"]
[null,null,null,null,null,null,null,null,null,null,null,null,null,null,null,null,null,null,null,null,null,null,null,null,null,null,null,null,null,null,null,null,null,null,null,null,null,null,null,"30 ДЕКАБРЯ 2020 года"]
[null,null,null,null,null,null,null,null,null,null,null,null,null,null,null,null,null,null,null,null,null,null,null,null,null,null,null,null,null,null,null,"ГРАФИК"]
[null,null,null,null,null,null,null,null,null,null,null,null,null,null,null,null,null,null,null,null,null,null,null,null,null,null,null,null,"технического обслуживания жилых домов"]
[null,null,null,null,null,null,null,"     66.1",null,null,null,null,null,null,"63.5","63.4","63.2",null,"65.1","62.1",null,null,"62.2",null,null,null,null,null,null,null,null,{"$f":"INDEX(AS10:AS19,MATCH(1,SUBTOTAL(3,OFFSET(AS9,ROW(AS10:AS19)-ROW(AS9),)),0))","v":"ЖЭС-2"}]
[null,"3.2.",null,null,null,"64.1",null,"Количество ВУ. ВРУ",null,"66.3","ВУ, ВРУ в Э.Щ.",null,"66.1","66.2","ПОДЪЕЗДЫ",null,null,null,null,null,null,"Вх. группа подъезда",null,null,"ПОДВАЛ",null,null,null,null,null,null,null,null,null,null,null,"Исполнитель:",null,null,{"$f":"INDEX(AR10:AR19,MATCH(1,SUBTOTAL(3,OFFSET(AR9,ROW(AR10:AR19)-ROW(AR9),)),0))","v":"Федюшин Денис Анатольевич"}]
["№ п.п","Адрес","кол-во квартир","Этажей","Подъездов","Эл. пров в подв. 10 м\\п","Место установки ВРУ, Э.Щ.","Количество ВУ, РУ","ВРУ (вводно распр. устр.)","Количество Э.Щ.","ВУ, ВРУ в Э.Щ.","ВРУ (вводно распр. устр.)2","Вводное устройство (рубильник)","Щитки этажные","Люминисцент.","КЛ","ЛН","светодиодный светильник","выключателей","светильников между этажами","датчиков","светодиодный светильник2","светодиодные лампы","КЛ2","Кол - во выключателей ","Кол - во светильников ","Фотореле","ЯНВАРЬ","ФЕВРАЛЬ","МАРТ","АПРЕЛЬ","МАЙ","ИЮНЬ","ИЮЛЬ","АВГУСТ","СЕНТЯБРЬ","ОКТЯБРЬ","НОЯБРЬ","ДЕКАБРЬ","ДАТА","РОСПИСЬ","ДАТА5","РОСПИСЬ6","Ф И О","ЖЭС","Месяц"]
[{"$f":"_xlfn.AGGREGATE(3,3,$B$10:B10)","v":1},"ул. 8 МАРТА д.3",null,null,null,null,null,null,null,null,null,null,null,null,null,null,null,null,null,null,null,null,null,null,null,null,null,"ТО",null,null,null,null,null,"ТО",null,null,null,null,null,null,null,null,null,"Федюшин Денис Анатольевич","ЖЭС-2","январь.июль"]
[{"$f":"_xlfn.AGGREGATE(3,3,$B$10:B11)","v":2},"подъезд.1",null,null,null,null,null,null,null,null,null,null,null,null,null,null,null,null,null,null,null,null,null,null,null,null,null,null,null,null,null,null,null,null,null,null,null,null,null,null,null,null,null,"Федюшин Денис Анатольевич","ЖЭС-2","январь.июль"]
[{"$f":"_xlfn.AGGREGATE(3,3,$B$10:B12)","v":3},"подъезд.2",null,null,null,null,null,null,null,null,null,null,null,null,null,null,null,null,null,null,null,null,null,null,null,null,null,null,null,null,null,null,null,null,null,null,null,null,null,null,null,null,null,"Федюшин Денис Анатольевич","ЖЭС-2","январь.июль"]
[{"$f":"_xlfn.AGGREGATE(3,3,$B$10:B13)","v":4},"подъезд.3",null,null,null,null,null,null,null,null,null,null,null,null,null,null,null,null,null,null,null,null,null,null,null,null,null,null,null,null,null,null,null,null,null,null,null,null,null,null,null,null,null,"Федюшин Денис Анатольевич","ЖЭС-2","январь.июль"]
[{"$f":"_xlfn.AGGREGATE(3,3,$B$10:B14)","v":5},"подъезд.4",null,null,null,null,null,null,null,null,null,null,null,null,null,null,null,null,null,null,null,null,null,null,null,null,null,null,null,null,null,null,null,null,null,null,null,null,null,null,null,null,null,"Федюшин Денис Анатольевич","ЖЭС-2","январь.июль"]
[{"$f":"_xlfn.AGGREGATE(3,3,$B$10:B15)","v":6},"ул. 8 МАРТА д.5",null,null,null,null,null,null,null,null,null,null,null,null,null,null,null,null,null,null,null,null,null,null,null,null,null,"ТО",null,null,null,null,null,"ТО",null,null,null,null,null,null,null,null,null,"Федюшин Денис Анатольевич","ЖЭС-2","январь.июль"]
[{"$f":"_xlfn.AGGREGATE(3,3,$B$10:B16)","v":7},"подъезд.1",null,null,null,null,null,null,null,null,null,null,null,null,null,null,null,null,null,null,null,null,null,null,null,null,null,null,null,null,null,null,null,null,null,null,null,null,null,null,null,null,null,"Федюшин Денис Анатольевич","ЖЭС-2","январь.июль"]
[{"$f":"_xlfn.AGGREGATE(3,3,$B$10:B17)","v":8},"подъезд.2",null,null,null,null,null,null,null,null,null,null,null,null,null,null,null,null,null,null,null,null,null,null,null,null,null,null,null,null,null,null,null,null,null,null,null,null,null,null,null,null,null,"Федюшин Денис Анатольевич","ЖЭС-2","январь.июль"]
[{"$f":"_xlfn.AGGREGATE(3,3,$B$10:B18)","v":9},"подъезд.3",null,null,null,null,null,null,null,null,null,null,null,null,null,null,null,null,null,null,null,null,null,null,null,null,null,null,null,null,null,null,null,null,null,null,null,null,null,null,null,null,null,"Федюшин Денис Анатольевич","ЖЭС-2","январь.июль"]
[{"$f":"_xlfn.AGGREGATE(3,3,$B$10:B19)","v":10},"подъезд.4",null,null,null,null,null,null,null,null,null,null,null,null,null,null,null,null,null,null,null,null,null,null,null,null,null,null,null,null,null,null,null,null,null,null,null,null,null,null,null,null,null,"Федюшин Денис Анатольевич","ЖЭС-2","январь.июль"]
["Итог",{"$f":"SUBTOTAL(103,ЖЭС_2_данные[Адрес])","v":10},null,null,null,null,null,null,null,null,null,null,null,null,null,null,null,null,null,null,null,null,null,null,null,null,null,{"$f":"SUBTOTAL(103,ЖЭС_2_данные[ЯНВАРЬ])","v":2},{"$f":"SUBTOTAL(103,ЖЭС_2_данные[ФЕВРАЛЬ])","v":0},{"$f":"SUBTOTAL(103,ЖЭС_2_данные[МАРТ])","v":0},{"$f":"SUBTOTAL(103,ЖЭС_2_данные[АПРЕЛЬ])","v":0},{"$f":"SUBTOTAL(103,ЖЭС_2_данные[МАЙ])","v":0},{"$f":"SUBTOTAL(103,ЖЭС_2_данные[ИЮНЬ])","v":0},{"$f":"SUBTOTAL(103,ЖЭС_2_данные[ИЮЛЬ])","v":2},{"$f":"SUBTOTAL(103,ЖЭС_2_данные[АВГУСТ])","v":0},{"$f":"SUBTOTAL(103,ЖЭС_2_данные[СЕНТЯБРЬ])","v":0},{"$f":"SUBTOTAL(103,ЖЭС_2_данные[ОКТЯБРЬ])","v":0},{"$f":"SUBTOTAL(103,ЖЭС_2_данные[НОЯБРЬ])","v":0},{"$f":"SUBTOTAL(103,ЖЭС_2_данные[ДЕКАБРЬ])","v":0}]
[]
["Итого","домов",null,null,null,null,null,null,null,null,null,null,null,null,null,null,null,null,null,null,null,null,null,null,null,null,null,{"$f":"ЖЭС_2_данные[[#Totals],[ЯНВАРЬ]]","v":2},{"$f":"ЖЭС_2_данные[[#Totals],[ФЕВРАЛЬ]]","v":0},{"$f":"ЖЭС_2_данные[[#Totals],[МАРТ]]","v":0},{"$f":"ЖЭС_2_данные[[#Totals],[АПРЕЛЬ]]","v":0},{"$f":"ЖЭС_2_данные[[#Totals],[МАЙ]]","v":0},{"$f":"ЖЭС_2_данные[[#Totals],[ИЮНЬ]]","v":0},{"$f":"ЖЭС_2_данные[[#Totals],[ИЮЛЬ]]","v":2},{"$f":"ЖЭС_2_данные[[#Totals],[АВГУСТ]]","v":0},{"$f":"ЖЭС_2_данные[[#Totals],[СЕНТЯБРЬ]]","v":0},{"$f":"ЖЭС_2_данные[[#Totals],[ОКТЯБРЬ]]","v":0},{"$f":"ЖЭС_2_данные[[#Totals],[НОЯБРЬ]]","v":0},{"$f":"ЖЭС_2_данные[[#Totals],[ДЕКАБРЬ]]","v":0},{"$f":"AB22+AC22+AD22+AE22+AF22+AG22","v":2}]
[]
[null,"щитки",null,null,null,null,null,null,null,null,null,null,null,null,null,null,null,null,null,null,null,null,null,null,null,null,null,{"$f":"SUMPRODUCT(SUBTOTAL(9,OFFSET(ЖЭС_2_данные[[#Headers],[Щитки этажные]:[Щитки этажные]],ROW(ЖЭС_2_данные[[Щитки этажные]:[Щитки этажные]])-9,0))*(ЖЭС_2_данные[ЯНВАРЬ]=\"ТО\"))","v":0},{"$f":"SUMPRODUCT(SUBTOTAL(9,OFFSET(ЖЭС_2_данные[[#Headers],[Щитки этажные]:[Щитки этажные]],ROW(ЖЭС_2_данные[[Щитки этажные]:[Щитки этажные]])-9,0))*(ЖЭС_2_данные[ФЕВРАЛЬ]=\"ТО\"))","v":0},{"$f":"SUMPRODUCT(SUBTOTAL(9,OFFSET(ЖЭС_2_данные[[#Headers],[Щитки этажные]:[Щитки этажные]],ROW(ЖЭС_2_данные[[Щитки этажные]:[Щитки этажные]])-9,0))*(ЖЭС_2_данные[МАРТ]=\"ТО\"))","v":0},{"$f":"SUMPRODUCT(SUBTOTAL(9,OFFSET(ЖЭС_2_данные[[#Headers],[Щитки этажные]:[Щитки этажные]],ROW(ЖЭС_2_данные[[Щитки этажные]:[Щитки этажные]])-9,0))*(ЖЭС_2_данные[АПРЕЛЬ]=\"ТО\"))","v":0},{"$f":"SUMPRODUCT(SUBTOTAL(9,OFFSET(ЖЭС_2_данные[[#Headers],[Щитки этажные]:[Щитки этажные]],ROW(ЖЭС_2_данные[[Щитки этажные]:[Щитки этажные]])-9,0))*(ЖЭС_2_данные[МАЙ]=\"ТО\"))","v":0},{"$f":"SUMPRODUCT(SUBTOTAL(9,OFFSET(ЖЭС_2_данные[[#Headers],[Щитки этажные]:[Щитки этажные]],ROW(ЖЭС_2_данные[[Щитки этажные]:[Щитки этажные]])-9,0))*(ЖЭС_2_данные[ИЮНЬ]=\"ТО\"))","v":0},{"$f":"SUMPRODUCT(SUBTOTAL(9,OFFSET(ЖЭС_2_данные[[#Headers],[Щитки этажные]:[Щитки этажные]],ROW(ЖЭС_2_данные[[Щитки этажные]:[Щитки этажные]])-9,0))*(ЖЭС_2_данные[ИЮЛЬ]=\"ТО\"))","v":0},{"$f":"SUMPRODUCT(SUBTOTAL(9,OFFSET(ЖЭС_2_данные[[#Headers],[Щитки этажные]:[Щитки этажные]],ROW(ЖЭС_2_данные[[Щитки этажные]:[Щитки этажные]])-9,0))*(ЖЭС_2_данные[АВГУСТ]=\"ТО\"))","v":0},{"$f":"SUMPRODUCT(SUBTOTAL(9,OFFSET(ЖЭС_2_данные[[#Headers],[Щитки этажные]:[Щитки этажные]],ROW(ЖЭС_2_данные[[Щитки этажные]:[Щитки этажные]])-9,0))*(ЖЭС_2_данные[СЕНТЯБРЬ]=\"ТО\"))","v":0},{"$f":"SUMPRODUCT(SUBTOTAL(9,OFFSET(ЖЭС_2_данные[[#Headers],[Щитки этажные]:[Щитки этажные]],ROW(ЖЭС_2_данные[[Щитки этажные]:[Щитки этажные]])-9,0))*(ЖЭС_2_данные[ОКТЯБРЬ]=\"ТО\"))","v":0},{"$f":"SUMPRODUCT(SUBTOTAL(9,OFFSET(ЖЭС_2_данные[[#Headers],[Щитки этажные]:[Щитки этажные]],ROW(ЖЭС_2_данные[[Щитки этажные]:[Щитки этажные]])-9,0))*(ЖЭС_2_данные[НОЯБРЬ]=\"ТО\"))","v":0},{"$f":"SUMPRODUCT(SUBTOTAL(9,OFFSET(ЖЭС_2_данные[[#Headers],[Щитки этажные]:[Щитки этажные]],ROW(ЖЭС_2_данные[[Щитки этажные]:[Щитки этажные]])-9,0))*(ЖЭС_2_данные[ДЕКАБРЬ]=\"ТО\"))","v":0},{"$f":"AB24+AC24+AD24+AE24+AF24+AG24","v":0}]
[]
[]
[]
[]
[null,null,null,null,null,null,null,null,null,null,null,null,null,null,null,null,null,null,null,null,null,null,null,null,null,null,null,"Ознакомлен: ",null,null,null,null,null,null,{"$f":"AN8","v":"Федюшин Денис Анатольевич"}]
[]
[]
[null,null,null,null,null,null,null,null,null,null,null,null,null,null,null,null,null,null,null,null,null,null,null,null,null,null,null,"ст. мастер",null,null,null,null,null,null,"С.Л. Косяк"]
[]
[]
[]
[null,null,null,null,null,null,null,null,null,null,null,null,null,null,null,null,null,null,null,null,null,null,null,null,null,null,null,"Нач. СЭЭО",null,null,null,null,null,null,"Д.С. Можаев"]